[Event "Titled Tuesday Blitz August 08 Early 2023"]
[White "Matinian, Nikita"]
[Black "Veiga, Jose Francisco R P Neves"]
[WhiteFideId "24129100"]
[BlackFideId "1930087"]
[WhiteElo "2674"]
[BlackElo "2556"]
[Result "1-0"]
[Round "9"]
[TimeControl "180+1"]
[Date "2023.08.08"]
[WhiteClock "0:01:43"]
[BlackClock "0:00:00"]
[Board "73"]

1. e4 {[%clk 0:03:00]}  e5 {[%clk 0:01:26]} 2. Nf3 {[%clk 0:02:58]}  Nc6 {[%clk 0:01:24]} 3. Bb5 {[%clk 0:02:59]}  a6 {[%clk 0:01:18]} 4. Ba4 {[%clk 0:02:59]}  Nf6 {[%clk 0:01:14]} 5. O-O {[%clk 0:02:58]}  Be7 {[%clk 0:01:13]} 6. d3 {[%clk 0:02:58]}  d6 {[%clk 0:01:11]} 7. c4 {[%clk 0:02:57]}  O-O {[%clk 0:01:10]} 8. Nc3 {[%clk 0:02:56]}  Bg4 {[%clk 0:01:10]} 9. Be3 {[%clk 0:02:54]}  Nd4 {[%clk 0:01:07]} 10. Bxd4 {[%clk 0:02:51]}  exd4 {[%clk 0:01:07]} 11. Ne2 {[%clk 0:02:50]}  Bxf3 {[%clk 0:01:05]} 12. gxf3 {[%clk 0:02:51]}  c5 {[%clk 0:01:04]} 13. f4 {[%clk 0:02:49]}  Nh5 {[%clk 0:01:00]} 14. f5 {[%clk 0:02:46]}  g6 {[%clk 0:00:49]} 15. Ng3 {[%clk 0:02:39]}  Nf4 {[%clk 0:00:41]} 16. Qf3 {[%clk 0:02:39]}  Bg5 {[%clk 0:00:38]} 17. Bc2 {[%clk 0:02:32]}  Bh6 {[%clk 0:00:37]} 18. Kh1 {[%clk 0:02:31]}  Qh4 {[%clk 0:00:33]} 19. a3 {[%clk 0:02:24]}  f6 {[%clk 0:00:24]} 20. b4 {[%clk 0:02:23]}  Rab8 {[%clk 0:00:17]} 21. bxc5 {[%clk 0:02:21]}  dxc5 {[%clk 0:00:17]} 22. Rab1 {[%clk 0:02:21]}  g5 {[%clk 0:00:17]} 23. Rb6 {[%clk 0:02:15]}  g4 {[%clk 0:00:16]} 24. Qd1 {[%clk 0:02:15]}  Qh3 {[%clk 0:00:16]} 25. Rg1 {[%clk 0:02:15]}  Bg5 {[%clk 0:00:16]} 26. Qf1 {[%clk 0:02:12]}  Qh4 {[%clk 0:00:16]} 27. Bd1 {[%clk 0:02:02]}  h5 {[%clk 0:00:16]} 28. e5 {[%clk 0:01:56]}  fxe5 {[%clk 0:00:15]} 29. Nxh5 {[%clk 0:01:57]}  Qxh5 {[%clk 0:00:15]} 30. Rxg4 {[%clk 0:01:54]}  Rxf5 {[%clk 0:00:02]} 31. Rxf4 {[%clk 0:01:53]}  Qf7 {[%clk 0:00:03]} 32. Rg4 {[%clk 0:01:48]}  Kh8 {[%clk 0:00:03]} 33. Qh3+ {[%clk 0:01:47]}  Kg8 {[%clk 0:00:00]} 34. Rh6 {[%clk 0:01:43]} 1-0


[Site "https://www.chess.com"]

[Event "Titled Tuesday Blitz August 08 Early 2023"]
[White "Goroshkov, Maksym"]
[Black "Palczert, Matyas"]
[WhiteFideId "14142716"]
[BlackFideId "784958"]
[WhiteElo "2655"]
[BlackElo "2526"]
[Result "1-0"]
[Round "9"]
[TimeControl "180+1"]
[Date "2023.08.08"]
[WhiteClock "0:01:06"]
[BlackClock "0:00:00"]
[Board "75"]

1. e4 {[%clk 0:03:00]}  c5 {[%clk 0:02:54]} 2. b4 {[%clk 0:03:00]}  cxb4 {[%clk 0:02:49]} 3. a3 {[%clk 0:03:00]}  e5 {[%clk 0:02:48]} 4. axb4 {[%clk 0:03:00]}  Nf6 {[%clk 0:02:39]} 5. Nf3 {[%clk 0:02:48]}  d5 {[%clk 0:02:25]} 6. exd5 {[%clk 0:02:45]}  e4 {[%clk 0:02:25]} 7. Nd4 {[%clk 0:02:44]}  Nxd5 {[%clk 0:02:11]} 8. c3 {[%clk 0:02:36]}  Be7 {[%clk 0:02:06]} 9. Bb5+ {[%clk 0:02:35]}  Bd7 {[%clk 0:02:04]} 10. Bc4 {[%clk 0:02:33]}  Nf6 {[%clk 0:01:54]} 11. O-O {[%clk 0:02:27]}  Nc6 {[%clk 0:01:52]} 12. Nxc6 {[%clk 0:02:21]}  Bxc6 {[%clk 0:01:53]} 13. Qb3 {[%clk 0:02:17]}  O-O {[%clk 0:01:52]} 14. Ba3 {[%clk 0:02:06]}  b5 {[%clk 0:01:50]} 15. Be2 {[%clk 0:02:05]}  Bd6 {[%clk 0:01:45]} 16. c4 {[%clk 0:02:02]}  bxc4 {[%clk 0:01:42]} 17. Qxc4 {[%clk 0:02:01]}  Bd5 {[%clk 0:01:39]} 18. Qd4 {[%clk 0:02:00]}  Qc7 {[%clk 0:01:36]} 19. Nc3 {[%clk 0:01:56]}  Bxh2+ {[%clk 0:01:35]} 20. Kh1 {[%clk 0:01:55]}  Qf4 {[%clk 0:00:24]} 21. Qe3 {[%clk 0:01:54]}  Qh4 {[%clk 0:00:20]} 22. Qh3 {[%clk 0:01:51]}  Qxh3 {[%clk 0:00:19]} 23. gxh3 {[%clk 0:01:52]}  Be5 {[%clk 0:00:19]} 24. Rad1 {[%clk 0:01:40]}  Bb7 {[%clk 0:00:18]} 25. f3 {[%clk 0:01:36]}  Rac8 {[%clk 0:00:15]} 26. Nxe4 {[%clk 0:01:35]}  Nxe4 {[%clk 0:00:12]} 27. fxe4 {[%clk 0:01:36]}  Bxe4+ {[%clk 0:00:13]} 28. Bf3 {[%clk 0:01:37]}  Bd3 {[%clk 0:00:12]} 29. Rfe1 {[%clk 0:01:35]}  Bd4 {[%clk 0:00:12]} 30. b5 {[%clk 0:01:33]}  Rfe8 {[%clk 0:00:12]} 31. Bc6 {[%clk 0:01:33]}  Re6 {[%clk 0:00:07]} 32. Rxe6 {[%clk 0:01:29]}  fxe6 {[%clk 0:00:08]} 33. Bd7 {[%clk 0:01:29]}  Rc2 {[%clk 0:00:03]} 34. Bxe6+ {[%clk 0:01:29]}  Kh8 {[%clk 0:00:03]} 35. Bb3 {[%clk 0:01:27]}  Rc8 {[%clk 0:00:02]} 36. Re1 {[%clk 0:01:25]}  Rd8 {[%clk 0:00:02]} 37. Be7 {[%clk 0:01:12]}  Re8 {[%clk 0:00:02]} 38. Bf7 {[%clk 0:01:13]}  Rc8 {[%clk 0:00:02]} 39. Be6 {[%clk 0:01:11]}  Re8 {[%clk 0:00:02]} 40. Bd7 {[%clk 0:01:12]}  Rb8 {[%clk 0:00:02]} 41. Bd6 {[%clk 0:01:11]}  Rd8 {[%clk 0:00:02]} 42. Bc6 {[%clk 0:01:06]}  Rf8 {[%clk 0:00:00]} 43. Bxf8 {[%clk 0:01:06]} 1-0


[Site "https://www.chess.com"]

[Event "Titled Tuesday Blitz August 08 Early 2023"]
[White "Shubenkova, Veronika"]
[Black "Zeynalli, Rashad"]
[WhiteFideId "44124040"]
[BlackFideId "13403320"]
[WhiteElo "2523"]
[BlackElo "2647"]
[Result "0-1"]
[Round "9"]
[TimeControl "180+1"]
[Date "2023.08.08"]
[WhiteClock "0:00:41"]
[BlackClock "0:01:21"]
[Board "77"]

1. c4 {[%clk 0:02:59]}  e6 {[%clk 0:02:59]} 2. Nc3 {[%clk 0:02:59]}  d5 {[%clk 0:02:59]} 3. cxd5 {[%clk 0:02:59]}  exd5 {[%clk 0:03:00]} 4. d4 {[%clk 0:03:00]}  Be7 {[%clk 0:02:58]} 5. Nf3 {[%clk 0:02:59]}  c6 {[%clk 0:02:55]} 6. e3 {[%clk 0:02:58]}  Bf5 {[%clk 0:02:54]} 7. Bd3 {[%clk 0:02:57]}  Bxd3 {[%clk 0:02:53]} 8. Qxd3 {[%clk 0:02:58]}  Nd7 {[%clk 0:02:53]} 9. O-O {[%clk 0:02:58]}  Ngf6 {[%clk 0:02:53]} 10. a3 {[%clk 0:02:58]}  a5 {[%clk 0:02:50]} 11. e4 {[%clk 0:02:55]}  dxe4 {[%clk 0:02:50]} 12. Nxe4 {[%clk 0:02:55]}  O-O {[%clk 0:02:47]} 13. b3 {[%clk 0:02:52]}  Re8 {[%clk 0:02:44]} 14. Ng3 {[%clk 0:02:48]}  Nc5 {[%clk 0:02:40]} 15. Qc2 {[%clk 0:02:48]}  Ne6 {[%clk 0:02:38]} 16. Nf5 {[%clk 0:02:42]}  Bf8 {[%clk 0:02:33]} 17. Bb2 {[%clk 0:02:41]}  Qd5 {[%clk 0:02:27]} 18. Rae1 {[%clk 0:02:37]}  Nf4 {[%clk 0:02:26]} 19. Re5 {[%clk 0:02:36]}  Qd7 {[%clk 0:02:07]} 20. Rfe1 {[%clk 0:02:31]}  Ng4 {[%clk 0:02:04]} 21. R5e4 {[%clk 0:02:28]}  Qxf5 {[%clk 0:02:00]} 22. Nh4 {[%clk 0:02:04]}  Qd7 {[%clk 0:01:47]} 23. Qd1 {[%clk 0:01:54]}  Ng6 {[%clk 0:01:34]} 24. Nxg6 {[%clk 0:01:40]}  hxg6 {[%clk 0:01:31]} 25. Bc3 {[%clk 0:00:58]}  Nf6 {[%clk 0:01:27]} 26. Rxe8 {[%clk 0:00:58]}  Rxe8 {[%clk 0:01:28]} 27. Rxe8 {[%clk 0:00:58]}  Qxe8 {[%clk 0:01:28]} 28. Bxa5 {[%clk 0:00:59]}  Bxa3 {[%clk 0:01:27]} 29. h3 {[%clk 0:00:59]}  Qe7 {[%clk 0:01:24]} 30. Qd2 {[%clk 0:00:41]}  Nd5 {[%clk 0:01:21]} 0-1


[Site "https://www.chess.com"]

[Event "Titled Tuesday Blitz August 08 Early 2023"]
[White "reevecanada"]
[Black "Weishaeutel, Moritz"]
[BlackFideId "12967300"]
[WhiteElo "2524"]
[BlackElo "2645"]
[Result "1/2-1/2"]
[Round "9"]
[TimeControl "180+1"]
[Date "2023.08.08"]
[WhiteClock "0:00:31"]
[BlackClock "0:01:16"]
[Board "78"]

1. e4 {[%clk 0:02:55]}  e5 {[%clk 0:02:59]} 2. Nf3 {[%clk 0:02:55]}  Nf6 {[%clk 0:03:00]} 3. Nxe5 {[%clk 0:02:52]}  Nxe4 {[%clk 0:03:01]} 4. Qe2 {[%clk 0:02:49]}  Qe7 {[%clk 0:03:00]} 5. Qxe4 {[%clk 0:02:49]}  d6 {[%clk 0:03:01]} 6. d4 {[%clk 0:02:48]}  dxe5 {[%clk 0:03:01]} 7. dxe5 {[%clk 0:02:48]}  Nc6 {[%clk 0:03:02]} 8. Bb5 {[%clk 0:02:47]}  Bd7 {[%clk 0:03:02]} 9. Bf4 {[%clk 0:02:47]}  O-O-O {[%clk 0:02:56]} 10. Nc3 {[%clk 0:02:46]}  Qb4 {[%clk 0:02:42]} 11. Bxc6 {[%clk 0:02:16]}  Bxc6 {[%clk 0:02:33]} 12. Qxb4 {[%clk 0:02:14]}  Bxb4 {[%clk 0:02:34]} 13. O-O {[%clk 0:02:14]}  Bxc3 {[%clk 0:02:13]} 14. bxc3 {[%clk 0:02:13]}  Rd5 {[%clk 0:02:14]} 15. Rfd1 {[%clk 0:02:10]}  Rhd8 {[%clk 0:02:14]} 16. Rxd5 {[%clk 0:02:09]}  Rxd5 {[%clk 0:02:15]} 17. Rb1 {[%clk 0:02:03]}  Ba4 {[%clk 0:02:08]} 18. f3 {[%clk 0:01:48]}  Bxc2 {[%clk 0:02:07]} 19. Rb2 {[%clk 0:01:42]}  Bf5 {[%clk 0:02:06]} 20. Kf2 {[%clk 0:01:36]}  Kd7 {[%clk 0:02:05]} 21. Rd2 {[%clk 0:01:35]}  Kc6 {[%clk 0:02:02]} 22. Rxd5 {[%clk 0:01:32]}  Kxd5 {[%clk 0:02:03]} 23. Ke3 {[%clk 0:01:30]}  Kc4 {[%clk 0:02:02]} 24. Kd2 {[%clk 0:01:30]}  Bb1 {[%clk 0:02:03]} 25. a4 {[%clk 0:01:27]}  Kb3 {[%clk 0:01:58]} 26. a5 {[%clk 0:01:25]}  Ka4 {[%clk 0:01:58]} 27. e6 {[%clk 0:01:24]}  fxe6 {[%clk 0:01:59]} 28. Bxc7 {[%clk 0:01:23]}  Kb3 {[%clk 0:01:52]} 29. h4 {[%clk 0:01:19]}  Bg6 {[%clk 0:01:50]} 30. g4 {[%clk 0:01:18]}  Be8 {[%clk 0:01:49]} 31. Be5 {[%clk 0:01:16]}  g6 {[%clk 0:01:48]} 32. Bd4 {[%clk 0:01:17]}  Ka4 {[%clk 0:01:43]} 33. Bxa7 {[%clk 0:01:17]}  Kxa5 {[%clk 0:01:44]} 34. Ke3 {[%clk 0:01:16]}  Kb5 {[%clk 0:01:44]} 35. Kf4 {[%clk 0:01:14]}  Kc4 {[%clk 0:01:41]} 36. Bd4 {[%clk 0:01:13]}  b5 {[%clk 0:01:41]} 37. Bf6 {[%clk 0:01:06]}  Bc6 {[%clk 0:01:39]} 38. Ke3 {[%clk 0:00:41]}  Kd5 {[%clk 0:01:35]} 39. f4 {[%clk 0:00:39]}  h5 {[%clk 0:01:33]} 40. f5 {[%clk 0:00:30]}  exf5 {[%clk 0:01:31]} 41. gxh5 {[%clk 0:00:31]}  gxh5 {[%clk 0:01:30]} 42. Kf4 {[%clk 0:00:31]}  Ke6 {[%clk 0:01:26]} 43. Bd4 {[%clk 0:00:31]}  Bd5 {[%clk 0:01:24]} 44. Kg5 {[%clk 0:00:31]}  Bf3 {[%clk 0:01:24]} 45. Bg7 {[%clk 0:00:31]}  Kd5 {[%clk 0:01:20]} 46. Kxf5 {[%clk 0:00:30]}  Kc4 {[%clk 0:01:18]} 47. Kg5 {[%clk 0:00:30]}  Be2 {[%clk 0:01:16]} 48. Bh8 {[%clk 0:00:30]}  Bd1 {[%clk 0:01:16]} 49. Bg7 {[%clk 0:00:30]}  Be2 {[%clk 0:01:15]} 50. Bh8 {[%clk 0:00:30]}  Bg4 {[%clk 0:01:16]} 51. Bg7 {[%clk 0:00:31]}  Be2 {[%clk 0:01:16]} 1/2-1/2


[Site "https://www.chess.com"]

[Event "Titled Tuesday Blitz August 08 Early 2023"]
[White "Lopez Del Alamo, Antonio"]
[Black "Vaibhav Jayant Raut"]
[WhiteFideId "2227339"]
[BlackFideId "5089034"]
[WhiteElo "2380"]
[BlackElo "2619"]
[Result "1-0"]
[Round "9"]
[TimeControl "180+1"]
[Date "2023.08.08"]
[WhiteClock "0:00:08"]
[BlackClock "0:00:11"]
[Board "80"]

1. e4 {[%clk 0:03:00]}  c5 {[%clk 0:02:58]} 2. Nf3 {[%clk 0:02:59]}  d6 {[%clk 0:02:58]} 3. d4 {[%clk 0:02:57]}  cxd4 {[%clk 0:02:59]} 4. Nxd4 {[%clk 0:02:53]}  Nf6 {[%clk 0:02:59]} 5. Nc3 {[%clk 0:02:53]}  Nc6 {[%clk 0:03:00]} 6. Bg5 {[%clk 0:02:51]}  e6 {[%clk 0:02:57]} 7. Bb5 {[%clk 0:02:52]}  Bd7 {[%clk 0:02:56]} 8. Bxc6 {[%clk 0:02:51]}  bxc6 {[%clk 0:02:55]} 9. Qf3 {[%clk 0:02:51]}  Be7 {[%clk 0:02:45]} 10. e5 {[%clk 0:02:51]}  dxe5 {[%clk 0:02:45]} 11. Nxc6 {[%clk 0:02:49]}  Qc8 {[%clk 0:02:36]} 12. Nxe7 {[%clk 0:02:46]}  Kxe7 {[%clk 0:02:37]} 13. Ne4 {[%clk 0:02:27]}  Qxc2 {[%clk 0:02:10]} 14. Bxf6+ {[%clk 0:02:25]}  Kf8 {[%clk 0:02:06]} 15. Bxe5 {[%clk 0:01:31]}  Bc6 {[%clk 0:02:01]} 16. Qa3+ {[%clk 0:01:23]}  Kg8 {[%clk 0:02:01]} 17. O-O {[%clk 0:01:01]}  Qxe4 {[%clk 0:01:54]} 18. Qg3 {[%clk 0:00:58]}  f6 {[%clk 0:01:17]} 19. Bc3 {[%clk 0:00:52]}  Qg6 {[%clk 0:01:07]} 20. Qh3 {[%clk 0:00:48]}  Kf7 {[%clk 0:01:02]} 21. f3 {[%clk 0:00:42]}  Rhd8 {[%clk 0:01:00]} 22. Rad1 {[%clk 0:00:36]}  Qc2 {[%clk 0:00:54]} 23. Rxd8 {[%clk 0:00:35]}  Rxd8 {[%clk 0:00:55]} 24. Re1 {[%clk 0:00:29]}  e5 {[%clk 0:00:36]} 25. Qg3 {[%clk 0:00:24]}  Rd1 {[%clk 0:00:31]} 26. a3 {[%clk 0:00:23]}  Bb5 {[%clk 0:00:21]} 27. Rxd1 {[%clk 0:00:21]}  Qxd1+ {[%clk 0:00:21]} 28. Qe1 {[%clk 0:00:21]}  Qd3 {[%clk 0:00:21]} 29. h3 {[%clk 0:00:20]}  Bc6 {[%clk 0:00:17]} 30. Qf2 {[%clk 0:00:20]}  a6 {[%clk 0:00:15]} 31. Kh2 {[%clk 0:00:20]}  Qc4 {[%clk 0:00:14]} 32. Qb6 {[%clk 0:00:20]}  h5 {[%clk 0:00:10]} 33. Qe3 {[%clk 0:00:20]}  h4 {[%clk 0:00:10]} 34. Qf2 {[%clk 0:00:19]}  g5 {[%clk 0:00:10]} 35. Qe3 {[%clk 0:00:19]}  Qd5 {[%clk 0:00:05]} 36. Qf2 {[%clk 0:00:18]}  Bb7 {[%clk 0:00:05]} 37. Qe3 {[%clk 0:00:18]}  Kg6 {[%clk 0:00:06]} 38. Bd2 {[%clk 0:00:18]}  Qd4 {[%clk 0:00:04]} 39. Qc3 {[%clk 0:00:15]}  Bd5 {[%clk 0:00:02]} 40. Qc1 {[%clk 0:00:13]}  e4 {[%clk 0:00:02]} 41. Be3 {[%clk 0:00:11]}  Qe5+ {[%clk 0:00:02]} 42. f4 {[%clk 0:00:12]}  Qf5 {[%clk 0:00:02]} 43. Qd2 {[%clk 0:00:11]}  gxf4 {[%clk 0:00:02]} 44. Bxf4 {[%clk 0:00:11]}  e3 {[%clk 0:00:03]} 45. Qxe3 {[%clk 0:00:11]}  Qe4 {[%clk 0:00:03]} 46. Qf2 {[%clk 0:00:10]}  Qf5 {[%clk 0:00:03]} 47. Qxh4 {[%clk 0:00:09]}  Qc2 {[%clk 0:00:03]} 48. Qg3+ {[%clk 0:00:09]}  Kf5 {[%clk 0:00:04]} 49. Qg4+ {[%clk 0:00:08]}  Ke4 {[%clk 0:00:04]} 50. Bg5+ {[%clk 0:00:07]}  Kd3 {[%clk 0:00:02]} 51. Qf5+ {[%clk 0:00:06]}  Be4 {[%clk 0:00:03]} 52. Qf1+ {[%clk 0:00:03]}  Kd4 {[%clk 0:00:03]} 53. Bxf6+ {[%clk 0:00:03]}  Kd5 {[%clk 0:00:03]} 54. Bc3 {[%clk 0:00:03]}  a5 {[%clk 0:00:03]} 55. h4 {[%clk 0:00:03]}  a4 {[%clk 0:00:03]} 56. h5 {[%clk 0:00:03]}  Kc6 {[%clk 0:00:03]} 57. h6 {[%clk 0:00:04]}  Kd5 {[%clk 0:00:01]} 58. Kg3 {[%clk 0:00:04]}  Kc6 {[%clk 0:00:02]} 59. Kh4 {[%clk 0:00:04]}  Bg6 {[%clk 0:00:02]} 60. Kg5 {[%clk 0:00:04]}  Qe4 {[%clk 0:00:02]} 61. Qf6+ {[%clk 0:00:05]}  Kb5 {[%clk 0:00:01]} 62. Qxg6 {[%clk 0:00:05]}  Qxg2+ {[%clk 0:00:02]} 63. Kf6 {[%clk 0:00:05]}  Qc6+ {[%clk 0:00:02]} 64. Kg7 {[%clk 0:00:05]}  Qd7+ {[%clk 0:00:02]} 65. Qf7 {[%clk 0:00:05]}  Qg4+ {[%clk 0:00:03]} 66. Kf8 {[%clk 0:00:06]}  Qc8+ {[%clk 0:00:03]} 67. Qe8+ {[%clk 0:00:06]}  Qc6 {[%clk 0:00:02]} 68. Qxc6+ {[%clk 0:00:06]}  Kxc6 {[%clk 0:00:02]} 69. h7 {[%clk 0:00:06]}  Kb5 {[%clk 0:00:03]} 70. h8=Q {[%clk 0:00:07]}  Kc4 {[%clk 0:00:03]} 71. Qd4+ {[%clk 0:00:07]}  Kb3 {[%clk 0:00:04]} 72. Qb4+ {[%clk 0:00:07]}  Ka2 {[%clk 0:00:05]} 73. Qxa4 {[%clk 0:00:07]}  Ka1 {[%clk 0:00:05]} 74. Qb4 {[%clk 0:00:08]}  Ka2 {[%clk 0:00:06]} 75. a4 {[%clk 0:00:08]}  Ka1 {[%clk 0:00:07]} 76. a5 {[%clk 0:00:09]}  Ka2 {[%clk 0:00:08]} 77. a6 {[%clk 0:00:10]}  Kb1 {[%clk 0:00:09]} 78. a7 {[%clk 0:00:10]}  Ka2 {[%clk 0:00:10]} 79. a8=Q+ {[%clk 0:00:10]}  Kb1 {[%clk 0:00:10]} 80. Qae4+ {[%clk 0:00:09]}  Kc1 {[%clk 0:00:11]} 81. Qe1+ {[%clk 0:00:08]}  Kc2 {[%clk 0:00:11]} 82. Qa4+ {[%clk 0:00:08]}  Kd3 {[%clk 0:00:11]} 83. Qd2# {[%clk 0:00:08]} 1-0


[Site "https://www.chess.com"]

[Event "Titled Tuesday Blitz August 08 Early 2023"]
[White "Colbow, Collin"]
[Black "Preobrazhenska_D2011"]
[WhiteFideId "16201132"]
[WhiteElo "2599"]
[BlackElo "2302"]
[Result "1-0"]
[Round "9"]
[TimeControl "180+1"]
[Date "2023.08.08"]
[WhiteClock "0:00:21"]
[BlackClock "0:00:07"]
[Board "81"]

1. d4 {[%clk 0:03:00]}  Nf6 {[%clk 0:03:00]} 2. Nc3 {[%clk 0:03:01]}  d5 {[%clk 0:02:57]} 3. Bf4 {[%clk 0:03:01]}  c5 {[%clk 0:02:57]} 4. e3 {[%clk 0:03:01]}  a6 {[%clk 0:02:53]} 5. Qd2 {[%clk 0:02:56]}  Nc6 {[%clk 0:02:53]} 6. O-O-O {[%clk 0:02:56]}  c4 {[%clk 0:02:50]} 7. f3 {[%clk 0:02:56]}  b5 {[%clk 0:02:48]} 8. e4 {[%clk 0:02:50]}  b4 {[%clk 0:02:29]} 9. Nxd5 {[%clk 0:02:49]}  Nxd5 {[%clk 0:02:29]} 10. exd5 {[%clk 0:02:50]}  Qxd5 {[%clk 0:02:29]} 11. c3 {[%clk 0:02:31]}  a5 {[%clk 0:01:43]} 12. Ne2 {[%clk 0:02:24]}  Bf5 {[%clk 0:01:30]} 13. Bg3 {[%clk 0:02:21]}  e6 {[%clk 0:01:13]} 14. Nf4 {[%clk 0:02:19]}  Qb5 {[%clk 0:01:14]} 15. d5 {[%clk 0:02:16]}  O-O-O {[%clk 0:01:02]} 16. Qe2 {[%clk 0:01:39]}  bxc3 {[%clk 0:00:50]} 17. bxc3 {[%clk 0:01:07]}  Ba3+ {[%clk 0:00:38]} 18. Kd2 {[%clk 0:01:08]}  Qb2+ {[%clk 0:00:32]} 19. Ke1 {[%clk 0:01:06]}  Qxc3+ {[%clk 0:00:32]} 20. Qd2 {[%clk 0:01:02]}  Qxd2+ {[%clk 0:00:18]} 21. Rxd2 {[%clk 0:01:02]}  c3 {[%clk 0:00:15]} 22. Ba6+ {[%clk 0:01:00]}  Kb8 {[%clk 0:00:11]} 23. Re2 {[%clk 0:00:28]}  e5 {[%clk 0:00:05]} 24. dxc6 {[%clk 0:00:26]}  exf4 {[%clk 0:00:05]} 25. Bxf4+ {[%clk 0:00:27]}  Ka7 {[%clk 0:00:06]} 26. c7 {[%clk 0:00:19]}  Rde8 {[%clk 0:00:04]} 27. Bb5 {[%clk 0:00:11]}  Rxe2+ {[%clk 0:00:04]} 28. Kxe2 {[%clk 0:00:12]}  c2 {[%clk 0:00:03]} 29. Be3+ {[%clk 0:00:12]}  Kb7 {[%clk 0:00:03]} 30. Bd3 {[%clk 0:00:13]}  Bxd3+ {[%clk 0:00:03]} 31. Kxd3 {[%clk 0:00:14]}  Kxc7 {[%clk 0:00:03]} 32. Kxc2 {[%clk 0:00:13]}  Bb4 {[%clk 0:00:03]} 33. Bd2 {[%clk 0:00:14]}  Bxd2 {[%clk 0:00:03]} 34. Kxd2 {[%clk 0:00:14]}  Rd8+ {[%clk 0:00:04]} 35. Kc3 {[%clk 0:00:15]}  Kb6 {[%clk 0:00:05]} 36. Rb1+ {[%clk 0:00:15]}  Kc5 {[%clk 0:00:05]} 37. a4 {[%clk 0:00:14]}  Re8 {[%clk 0:00:03]} 38. Rb5+ {[%clk 0:00:15]}  Kc6 {[%clk 0:00:03]} 39. Rxa5 {[%clk 0:00:14]}  Re2 {[%clk 0:00:03]} 40. Ra7 {[%clk 0:00:15]}  Rxg2 {[%clk 0:00:03]} 41. Rxf7 {[%clk 0:00:15]}  Rxh2 {[%clk 0:00:04]} 42. Rxg7 {[%clk 0:00:16]}  Rh3 {[%clk 0:00:04]} 43. Rf7 {[%clk 0:00:16]}  Kb6 {[%clk 0:00:03]} 44. Rf5 {[%clk 0:00:17]}  h5 {[%clk 0:00:03]} 45. a5+ {[%clk 0:00:16]}  Ka6 {[%clk 0:00:04]} 46. Kb4 {[%clk 0:00:17]}  Rh1 {[%clk 0:00:04]} 47. Rf6+ {[%clk 0:00:17]}  Ka7 {[%clk 0:00:05]} 48. Rh6 {[%clk 0:00:16]}  Rb1+ {[%clk 0:00:05]} 49. Kc5 {[%clk 0:00:16]}  Rc1+ {[%clk 0:00:04]} 50. Kd4 {[%clk 0:00:17]}  Rd1+ {[%clk 0:00:03]} 51. Ke3 {[%clk 0:00:17]}  Rh1 {[%clk 0:00:03]} 52. f4 {[%clk 0:00:16]}  h4 {[%clk 0:00:03]} 53. Kf3 {[%clk 0:00:15]}  Ra1 {[%clk 0:00:03]} 54. Rxh4 {[%clk 0:00:13]}  Rxa5 {[%clk 0:00:03]} 55. Rh6 {[%clk 0:00:12]}  Kb7 {[%clk 0:00:03]} 56. Rd6 {[%clk 0:00:13]}  Kc7 {[%clk 0:00:04]} 57. Rd4 {[%clk 0:00:12]}  Ra1 {[%clk 0:00:03]} 58. Ke4 {[%clk 0:00:13]}  Re1+ {[%clk 0:00:04]} 59. Kf5 {[%clk 0:00:14]}  Rf1 {[%clk 0:00:04]} 60. Kg5 {[%clk 0:00:14]}  Rg1+ {[%clk 0:00:05]} 61. Kf6 {[%clk 0:00:15]}  Rf1 {[%clk 0:00:06]} 62. f5 {[%clk 0:00:15]}  Rf2 {[%clk 0:00:05]} 63. Kg6 {[%clk 0:00:16]}  Rg2+ {[%clk 0:00:05]} 64. Kf7 {[%clk 0:00:16]}  Rf2 {[%clk 0:00:06]} 65. f6 {[%clk 0:00:17]}  Rf3 {[%clk 0:00:07]} 66. Kg7 {[%clk 0:00:18]}  Rg3+ {[%clk 0:00:07]} 67. Kf8 {[%clk 0:00:18]}  Rf3 {[%clk 0:00:08]} 68. f7 {[%clk 0:00:19]}  Rf2 {[%clk 0:00:08]} 69. Ke7 {[%clk 0:00:19]}  Re2+ {[%clk 0:00:08]} 70. Kf6 {[%clk 0:00:19]}  Rf2+ {[%clk 0:00:08]} 71. Ke6 {[%clk 0:00:20]}  Re2+ {[%clk 0:00:08]} 72. Kf5 {[%clk 0:00:19]}  Rf2+ {[%clk 0:00:09]} 73. Rf4 {[%clk 0:00:20]}  Rxf4+ {[%clk 0:00:07]} 74. Kxf4 {[%clk 0:00:21]} 1-0


[Site "https://www.chess.com"]